[Event "*** SCC Grand Prix: Titled Tuesday Blitz"]
[Site "Chess.com"]
[Date "2020.06.09"]
[Round "9"]
[White "Karateloru"]
[Black "woodhy"]
[Result "0-1"]
[WhiteElo "2613"]
[BlackElo "2478"]
[TimeControl "180+1"]
[EndTime "10:46:03 PDT"]
[Termination "woodhy won by resignation"]

1. e4 {[%clk 0:03:00.9]} 1... e6 {[%clk 0:02:59.6]} 2. Nc3 {[%clk 0:02:58.9]}
2... d5 {[%clk 0:02:58.1]} 3. Nf3 {[%clk 0:02:59.8]} 3... Nf6 {[%clk 0:02:57.5]}
4. e5 {[%clk 0:02:59.1]} 4... Nfd7 {[%clk 0:02:57.6]} 5. d4 {[%clk 0:03:00]}
5... c5 {[%clk 0:02:57.5]} 6. dxc5 {[%clk 0:02:59.8]} 6... Nc6 {[%clk
0:02:55.6]} 7. Bf4 {[%clk 0:02:59.4]} 7... Bxc5 {[%clk 0:02:54.3]} 8. Bd3 {[%clk
0:02:59.9]} 8... f6 {[%clk 0:02:44.5]} 9. exf6 {[%clk 0:02:55.8]} 9... Nxf6
{[%clk 0:02:44.8]} 10. O-O {[%clk 0:02:54.6]} 10... O-O {[%clk 0:02:43.4]} 11.
Ne5 {[%clk 0:02:53.8]} 11... Bd6 {[%clk 0:02:18.8]} 12. Qe2 {[%clk 0:02:43.2]}
12... Nxe5 {[%clk 0:01:45.9]} 13. Bxe5 {[%clk 0:02:44.1]} 13... Bxe5 {[%clk
0:01:46.8]} 14. Qxe5 {[%clk 0:02:44.1]} 14... Ng4 {[%clk 0:01:46.9]} 15. Qg3
{[%clk 0:02:27.8]} 15... e5 {[%clk 0:01:41.1]} 16. h3 {[%clk 0:02:26.1]} 16...
e4 {[%clk 0:01:24]} 17. Bxe4 {[%clk 0:02:22]} 17... dxe4 {[%clk 0:01:21.6]} 18.
hxg4 {[%clk 0:02:22.5]} 18... Qb6 {[%clk 0:01:14.3]} 19. b3 {[%clk 0:02:02.6]}
19... Qc6 {[%clk 0:00:56.3]} 20. Rfe1 {[%clk 0:02:01.1]} 20... Bxg4 {[%clk
0:00:53.9]} 21. Nxe4 {[%clk 0:01:56]} 21... Bf5 {[%clk 0:00:52.9]} 22. Nd6
{[%clk 0:01:53.8]} 22... Qxc2 {[%clk 0:00:48.6]} 23. Re7 {[%clk 0:01:51.6]}
23... Bg6 {[%clk 0:00:44.9]} 24. Rf1 {[%clk 0:01:48.3]} 24... Qxa2 {[%clk
0:00:40.2]} 25. Qe5 {[%clk 0:01:47.1]} 25... Rf6 {[%clk 0:00:37]} 26. Qd5+
{[%clk 0:01:37.3]} 26... Kh8 {[%clk 0:00:32.5]} 27. Rxb7 {[%clk 0:01:16.7]}
27... Raf8 {[%clk 0:00:30.6]} 28. Qd4 {[%clk 0:01:11.2]} 28... a5 {[%clk
0:00:20.7]} 29. Ra7 {[%clk 0:01:10]} 29... h6 {[%clk 0:00:14.4]} 30. b4 {[%clk
0:01:06.1]} 30... Qc2 {[%clk 0:00:08.8]} 31. Rxa5 {[%clk 0:01:02.7]} 31... Bd3
{[%clk 0:00:07.7]} 32. Rc5 {[%clk 0:01:02.3]} 32... Qe2 {[%clk 0:00:06.8]} 33.
Ra1 {[%clk 0:01:01.3]} 33... Rxf2 {[%clk 0:00:05.6]} 34. Qd5 {[%clk 0:00:58.2]}
34... Rf1+ {[%clk 0:00:05.5]} 35. Rxf1 {[%clk 0:00:57.7]} 35... Qxf1+ {[%clk
0:00:06.4]} 36. Kh2 {[%clk 0:00:58.2]} 36... Qf4+ {[%clk 0:00:07.3]} 37. g3
{[%clk 0:00:57.4]} 37... Qd2+ {[%clk 0:00:05]} 38. Kh3 {[%clk 0:00:57.1]} 38...
Bf1+ {[%clk 0:00:04.7]} 39. Kh4 {[%clk 0:00:54.3]} 39... Qh2+ {[%clk 0:00:03.9]}
40. Kg4 {[%clk 0:00:54.2]} 40... Be2+ {[%clk 0:00:02.8]} 0-1

[Event "*** SCC Grand Prix: Titled Tuesday Blitz"]
[Site "Chess.com"]
[Date "2020.06.09"]
[Round "9"]
[White "bmt011"]
[Black "monstertube"]
[Result "1-0"]
[WhiteElo "2115"]
[BlackElo "2150"]
[TimeControl "180+1"]
[EndTime "10:46:07 PDT"]
[Termination "bmt011 won by resignation"]

1. d4 {[%clk 0:03:00.9]} 1... d5 {[%clk 0:02:59.5]} 2. Bf4 {[%clk 0:02:58.2]}
2... c5 {[%clk 0:02:56.2]} 3. e3 {[%clk 0:02:55.1]} 3... Nf6 {[%clk 0:02:53.2]}
4. Nd2 {[%clk 0:02:43.5]} 4... Nc6 {[%clk 0:02:50.4]} 5. c3 {[%clk 0:02:35.4]}
5... Bf5 {[%clk 0:02:46.5]} 6. Ngf3 {[%clk 0:02:31.8]} 6... e6 {[%clk 0:02:46]}
7. Bb5 {[%clk 0:02:31.6]} 7... Bd6 {[%clk 0:02:40.8]} 8. Ne5 {[%clk 0:02:28.8]}
8... Bxe5 {[%clk 0:02:40]} 9. Bxe5 {[%clk 0:02:18.3]} 9... O-O {[%clk
0:02:38.8]} 10. Bxc6 {[%clk 0:02:14.6]} 10... bxc6 {[%clk 0:02:37.7]} 11. dxc5
{[%clk 0:02:14.2]} 11... a5 {[%clk 0:02:30.5]} 12. b4 {[%clk 0:02:05.9]} 12...
Nd7 {[%clk 0:02:25.5]} 13. Bd6 {[%clk 0:02:05]} 13... Re8 {[%clk 0:02:24.8]} 14.
O-O {[%clk 0:02:03.9]} 14... e5 {[%clk 0:02:25]} 15. e4 {[%clk 0:01:51.2]} 15...
dxe4 {[%clk 0:02:16.8]} 16. Qe2 {[%clk 0:01:43.9]} 16... Qh4 {[%clk 0:02:16.1]}
17. g3 {[%clk 0:01:38.6]} 17... Qh3 {[%clk 0:01:23.5]} 18. Nxe4 {[%clk
0:01:24.5]} 18... Bg4 {[%clk 0:01:23.3]} 19. Qe3 {[%clk 0:01:17.1]} 19... Be6
{[%clk 0:01:22.6]} 20. Ng5 {[%clk 0:01:14.6]} 20... Qf5 {[%clk 0:01:20.1]} 21.
Nxe6 {[%clk 0:01:13]} 21... Qxe6 {[%clk 0:01:21]} 22. Rfe1 {[%clk 0:01:10.8]}
22... f6 {[%clk 0:01:21]} 23. a4 {[%clk 0:01:10]} 23... axb4 {[%clk 0:01:17.2]}
24. cxb4 {[%clk 0:01:10.4]} 24... Qc4 {[%clk 0:01:16.7]} 25. Qd2 {[%clk
0:01:03.8]} 25... Nf8 {[%clk 0:01:15.4]} 26. Qa2 {[%clk 0:01:02]} 26... Qxa2
{[%clk 0:01:12.8]} 27. Rxa2 {[%clk 0:01:00.6]} 27... Ne6 {[%clk 0:01:13.7]} 28.
Rea1 {[%clk 0:00:57.9]} 28... Nd4 {[%clk 0:01:12.7]} 29. Kf1 {[%clk 0:00:44.4]}
29... Red8 {[%clk 0:01:13]} 30. Ke1 {[%clk 0:00:42.1]} 30... Nf5 {[%clk
0:01:12.4]} 31. Bc7 {[%clk 0:00:35.8]} 31... Rd4 {[%clk 0:01:09.5]} 32. b5
{[%clk 0:00:34.2]} 32... cxb5 {[%clk 0:00:53.4]} 33. axb5 {[%clk 0:00:34.4]}
33... Rxa2 {[%clk 0:00:54.1]} 34. Rxa2 {[%clk 0:00:34]} 34... Rc4 {[%clk
0:00:55]} 35. b6 {[%clk 0:00:29.1]} 35... Nd4 {[%clk 0:00:52.1]} 36. b7 {[%clk
0:00:28.4]} 36... Nc6 {[%clk 0:00:52]} 37. Bb6 {[%clk 0:00:28.1]} 37... Kf7
{[%clk 0:00:46.3]} 38. Ra8 {[%clk 0:00:28.2]} 38... Ke6 {[%clk 0:00:45.8]} 39.
Rc8 {[%clk 0:00:28.5]} 1-0

[Event "*** SCC Grand Prix: Titled Tuesday Blitz"]
[Site "Chess.com"]
[Date "2020.06.09"]
[Round "9"]
[White "Ural_bogatyr"]
[Black "PotapovaM"]
[Result "1-0"]
[WhiteElo "2313"]
[BlackElo "2422"]
[TimeControl "180+1"]
[EndTime "10:46:09 PDT"]
[Termination "Ural_bogatyr won on time"]

1. e4 {[%clk 0:02:55.9]} 1... c5 {[%clk 0:02:59.7]} 2. Nf3 {[%clk 0:02:54.7]}
2... d6 {[%clk 0:03:00.3]} 3. d4 {[%clk 0:02:54.3]} 3... cxd4 {[%clk 0:03:01.2]}
4. Qxd4 {[%clk 0:02:54.8]} 4... Nc6 {[%clk 0:02:59.5]} 5. Bb5 {[%clk 0:02:54.8]}
5... Bd7 {[%clk 0:03:00]} 6. Bxc6 {[%clk 0:02:54.6]} 6... Bxc6 {[%clk
0:03:00.9]} 7. Nc3 {[%clk 0:02:54.6]} 7... Nf6 {[%clk 0:03:01.5]} 8. Bg5 {[%clk
0:02:54.7]} 8... e6 {[%clk 0:03:02.1]} 9. O-O-O {[%clk 0:02:54.3]} 9... Be7
{[%clk 0:03:02.7]} 10. Bxf6 {[%clk 0:02:52]} 10... Bxf6 {[%clk 0:03:02]} 11.
Qxd6 {[%clk 0:02:51.6]} 11... Qa5 {[%clk 0:03:01]} 12. Nd4 {[%clk 0:00:50.4]}
12... Bxd4 {[%clk 0:00:15]} 13. Rxd4 {[%clk 0:00:37.3]} 13... Rc8 {[%clk
0:00:13.6]} 14. Rhd1 {[%clk 0:00:32.2]} 14... h5 {[%clk 0:00:11]} 15. Kb1 {[%clk
0:00:24.7]} 15... Qg5 {[%clk 0:00:10.5]} 16. Nd5 {[%clk 0:00:17.2]} 16... Bxd5
{[%clk 0:00:03.9]} 17. exd5 {[%clk 0:00:16.9]} 17... e5 {[%clk 0:00:03.4]} 18.
Re4 {[%clk 0:00:12.4]} 18... f6 {[%clk 0:00:02.2]} 19. Qe6+ {[%clk 0:00:11.5]}
19... Kd8 {[%clk 0:00:02.8]} 20. Qd6+ {[%clk 0:00:06.4]} 20... Ke8 {[%clk
0:00:02.7]} 21. Rb4 {[%clk 0:00:06.7]} 21... b6 {[%clk 0:00:02.2]} 22. Ra4
{[%clk 0:00:05.5]} 22... Qf5 {[%clk 0:00:01.7]} 23. Rc1 {[%clk 0:00:03.4]} 1-0

[Event "*** SCC Grand Prix: Titled Tuesday Blitz"]
[Site "Chess.com"]
[Date "2020.06.09"]
[Round "9"]
[White "AlexOstrovskiy"]
[Black "yobdc"]
[Result "0-1"]
[WhiteElo "2577"]
[BlackElo "2308"]
[TimeControl "180+1"]
[EndTime "10:46:10 PDT"]
[Termination "yobdc won on time"]

1. d4 {[%clk 0:03:00.9]} 1... Nf6 {[%clk 0:02:59.6]} 2. Bg5 {[%clk 0:02:58.1]}
2... d5 {[%clk 0:02:57.2]} 3. Bxf6 {[%clk 0:02:58.3]} 3... exf6 {[%clk
0:02:57.3]} 4. e3 {[%clk 0:02:59.2]} 4... Bd6 {[%clk 0:02:57]} 5. g3 {[%clk
0:02:59.5]} 5... h5 {[%clk 0:02:54.2]} 6. h4 {[%clk 0:02:59.1]} 6... c6 {[%clk
0:02:53.3]} 7. Bg2 {[%clk 0:02:59.4]} 7... Nd7 {[%clk 0:02:52.2]} 8. Ne2 {[%clk
0:02:59.8]} 8... Nb6 {[%clk 0:02:50.6]} 9. Nd2 {[%clk 0:02:56.3]} 9... Bg4
{[%clk 0:02:50.7]} 10. b3 {[%clk 0:02:50]} 10... Qd7 {[%clk 0:02:47.9]} 11. c4
{[%clk 0:02:47.4]} 11... dxc4 {[%clk 0:02:48.1]} 12. bxc4 {[%clk 0:02:48.3]}
12... Bb4 {[%clk 0:02:47.2]} 13. Rc1 {[%clk 0:02:42.4]} 13... Be6 {[%clk
0:02:30.1]} 14. O-O {[%clk 0:02:12.5]} 14... Bxd2 {[%clk 0:02:28.9]} 15. Qxd2
{[%clk 0:02:13.4]} 15... Bxc4 {[%clk 0:02:27.3]} 16. Rfd1 {[%clk 0:02:05.9]}
16... O-O {[%clk 0:02:20.2]} 17. Nf4 {[%clk 0:02:02.2]} 17... g6 {[%clk
0:02:19.7]} 18. Qb2 {[%clk 0:02:01.3]} 18... Rfe8 {[%clk 0:02:04.1]} 19. a4
{[%clk 0:01:47.1]} 19... Bd5 {[%clk 0:01:54.5]} 20. a5 {[%clk 0:01:34.1]} 20...
Bxg2 {[%clk 0:01:53.5]} 21. Kxg2 {[%clk 0:01:30.7]} 21... Nd5 {[%clk 0:01:53.7]}
22. Nd3 {[%clk 0:01:31.1]} 22... b6 {[%clk 0:01:45.1]} 23. axb6 {[%clk
0:01:17.5]} 23... axb6 {[%clk 0:01:46]} 24. Rc2 {[%clk 0:01:18.4]} 24... Rxe3
{[%clk 0:01:35.8]} 25. fxe3 {[%clk 0:01:13.9]} 25... Nxe3+ {[%clk 0:01:36.7]}
26. Kh2 {[%clk 0:01:07.5]} 26... Nxd1 {[%clk 0:01:34.5]} 27. Qxb6 {[%clk
0:00:45.8]} 27... Ra3 {[%clk 0:00:43.7]} 28. Rd2 {[%clk 0:00:16.8]} 28... Ne3
{[%clk 0:00:31.4]} 29. Qb8+ {[%clk 0:00:14.4]} 29... Kg7 {[%clk 0:00:31.2]} 30.
Qf4 {[%clk 0:00:15.3]} 30... Ng4+ {[%clk 0:00:31.2]} 31. Kg2 {[%clk 0:00:08.5]}
31... Qd5+ {[%clk 0:00:31.4]} 32. Qf3 {[%clk 0:00:08.6]} 32... Qxd4 {[%clk
0:00:31.6]} 0-1

[Event "*** SCC Grand Prix: Titled Tuesday Blitz"]
[Site "Chess.com"]
[Date "2020.06.09"]
[Round "9"]
[White "ChessQueen"]
[Black "chessplayer9919"]
[Result "1-0"]
[WhiteElo "2668"]
[BlackElo "2515"]
[TimeControl "180+1"]
[EndTime "10:46:10 PDT"]
[Termination "ChessQueen won by resignation"]

1. Nf3 {[%clk 0:03:00.9]} 1... d5 {[%clk 0:02:59.1]} 2. g3 {[%clk 0:03:00.3]}
2... Nf6 {[%clk 0:02:55.5]} 3. Bg2 {[%clk 0:03:00.4]} 3... Bf5 {[%clk
0:02:55.5]} 4. O-O {[%clk 0:02:59.8]} 4... c6 {[%clk 0:02:55.8]} 5. c4 {[%clk
0:03:00.2]} 5... e6 {[%clk 0:02:55.5]} 6. cxd5 {[%clk 0:02:58.3]} 6... exd5
{[%clk 0:02:53.8]} 7. d3 {[%clk 0:02:58.3]} 7... Be7 {[%clk 0:02:49.7]} 8. Qb3
{[%clk 0:02:58.4]} 8... Qb6 {[%clk 0:02:46.2]} 9. Qc2 {[%clk 0:02:58.5]} 9... h6
{[%clk 0:02:37.6]} 10. Nc3 {[%clk 0:02:57.7]} 10... Bh7 {[%clk 0:02:33.3]} 11.
e4 {[%clk 0:02:57.5]} 11... dxe4 {[%clk 0:02:31.2]} 12. dxe4 {[%clk 0:02:58.4]}
12... O-O {[%clk 0:02:30.5]} 13. Be3 {[%clk 0:02:54.1]} 13... Qc7 {[%clk
0:02:23.5]} 14. Bf4 {[%clk 0:02:52]} 14... Qa5 {[%clk 0:02:20.8]} 15. Nd4 {[%clk
0:02:48.4]} 15... Nbd7 {[%clk 0:02:13]} 16. Qe2 {[%clk 0:02:42.3]} 16... Rfe8
{[%clk 0:01:57]} 17. Nb3 {[%clk 0:02:36.1]} 17... Qh5 {[%clk 0:01:52.8]} 18. f3
{[%clk 0:02:33.2]} 18... Nc5 {[%clk 0:01:35.8]} 19. g4 {[%clk 0:02:27.4]} 19...
Qg6 {[%clk 0:01:20.8]} 20. Nd4 {[%clk 0:02:25.5]} 20... Ne6 {[%clk 0:01:11.2]}
21. Nxe6 {[%clk 0:02:21.5]} 21... fxe6 {[%clk 0:01:10.1]} 22. h4 {[%clk
0:02:17.6]} 22... Qf7 {[%clk 0:01:08.1]} 23. Bg3 {[%clk 0:02:14.3]} 23... Nd7
{[%clk 0:01:03.2]} 24. Rad1 {[%clk 0:02:12.3]} 24... Nb6 {[%clk 0:00:55.5]} 25.
f4 {[%clk 0:02:09.1]} 25... Rad8 {[%clk 0:00:49.8]} 26. Kh2 {[%clk 0:02:04.8]}
26... Bb4 {[%clk 0:00:33.8]} 27. Rxd8 {[%clk 0:01:52]} 27... Rxd8 {[%clk
0:00:33.8]} 28. Rd1 {[%clk 0:01:52.7]} 28... Rxd1 {[%clk 0:00:26.9]} 29. Nxd1
{[%clk 0:01:52.4]} 29... Qd7 {[%clk 0:00:23.2]} 30. Nf2 {[%clk 0:01:51.6]} 30...
Qd2 {[%clk 0:00:19.4]} 31. Qxd2 {[%clk 0:01:50.5]} 31... Bxd2 {[%clk 0:00:20.3]}
32. Nd3 {[%clk 0:01:50.9]} 32... Nc4 {[%clk 0:00:19]} 33. b3 {[%clk 0:01:47.2]}
33... Ne3 {[%clk 0:00:19.1]} 34. Bf3 {[%clk 0:01:42.6]} 34... Nf1+ {[%clk
0:00:11]} 35. Kg2 {[%clk 0:01:41.2]} 35... Nxg3 {[%clk 0:00:11.4]} 36. Kxg3
{[%clk 0:01:41.8]} 36... g5 {[%clk 0:00:11.1]} 37. hxg5 {[%clk 0:01:39]} 37...
hxg5 {[%clk 0:00:12]} 38. f5 {[%clk 0:01:39.2]} 38... exf5 {[%clk 0:00:11.3]}
39. gxf5 {[%clk 0:01:39.6]} 39... Kf8 {[%clk 0:00:10.2]} 40. Kg4 {[%clk
0:01:37]} 40... Bg8 {[%clk 0:00:07.7]} 41. Nc5 {[%clk 0:01:20]} 41... b6 {[%clk
0:00:05.9]} 42. Nd7+ {[%clk 0:01:20.2]} 42... Ke7 {[%clk 0:00:06.1]} 43. Ne5
{[%clk 0:01:20.5]} 43... c5 {[%clk 0:00:04.1]} 44. Ng6+ {[%clk 0:01:19.5]} 44...
Kd6 {[%clk 0:00:01.9]} 45. e5+ {[%clk 0:01:19.8]} 45... Kd7 {[%clk 0:00:01.8]}
46. Be2 {[%clk 0:01:11]} 46... a6 {[%clk 0:00:01.2]} 47. Bxa6 {[%clk 0:01:10.7]}
47... Bd5 {[%clk 0:00:01.5]} 48. Bb5+ {[%clk 0:01:09.8]} 48... Kd8 {[%clk
0:00:02]} 49. e6 {[%clk 0:01:04.9]} 1-0

[Event "*** SCC Grand Prix: Titled Tuesday Blitz"]
[Site "Chess.com"]
[Date "2020.06.09"]
[Round "9"]
[White "chargemax23"]
[Black "SergeyKarjakin"]
[Result "0-1"]
[WhiteElo "2707"]
[BlackElo "2961"]
[TimeControl "180+1"]
[EndTime "10:46:14 PDT"]
[Termination "SergeyKarjakin won by resignation"]

1. c4 {[%clk 0:03:00.9]} 1... c5 {[%clk 0:02:57.8]} 2. Nc3 {[%clk 0:02:58.2]}
2... g6 {[%clk 0:02:57.5]} 3. Nf3 {[%clk 0:02:57.7]} 3... Bg7 {[%clk 0:02:57.7]}
4. e3 {[%clk 0:02:57.6]} 4... Nf6 {[%clk 0:02:55.8]} 5. d4 {[%clk 0:02:57.5]}
5... O-O {[%clk 0:02:50.8]} 6. d5 {[%clk 0:02:55.5]} 6... d6 {[%clk 0:02:50.5]}
7. h3 {[%clk 0:02:52.8]} 7... e6 {[%clk 0:02:50.6]} 8. e4 {[%clk 0:02:48.4]}
8... exd5 {[%clk 0:02:46]} 9. exd5 {[%clk 0:02:48.4]} 9... Re8+ {[%clk
0:02:43.5]} 10. Be3 {[%clk 0:02:48.2]} 10... Bh6 {[%clk 0:02:33.8]} 11. Bd3
{[%clk 0:02:34.5]} 11... Bxe3 {[%clk 0:02:30.9]} 12. fxe3 {[%clk 0:02:34.2]}
12... Rxe3+ {[%clk 0:02:31.8]} 13. Kf2 {[%clk 0:02:32.3]} 13... Re8 {[%clk
0:02:32.2]} 14. Rf1 {[%clk 0:02:29.9]} 14... Na6 {[%clk 0:02:04.1]} 15. a3
{[%clk 0:02:26.1]} 15... Nc7 {[%clk 0:02:03.1]} 16. Kg1 {[%clk 0:02:25.3]} 16...
b5 {[%clk 0:01:44.1]} 17. Ng5 {[%clk 0:02:14.2]} 17... bxc4 {[%clk 0:01:40.1]}
18. Bxc4 {[%clk 0:02:11.9]} 18... Re5 {[%clk 0:01:39]} 19. Qd2 {[%clk
0:02:03.6]} 19... Bb7 {[%clk 0:01:24]} 20. Nf3 {[%clk 0:01:58.4]} 20... Re7
{[%clk 0:01:00.6]} 21. Rad1 {[%clk 0:01:32.7]} 21... Ne4 {[%clk 0:00:39.2]} 22.
Nxe4 {[%clk 0:01:20.6]} 22... Rxe4 {[%clk 0:00:40.1]} 23. b3 {[%clk 0:01:06.4]}
23... Qe7 {[%clk 0:00:28.5]} 24. Qh6 {[%clk 0:01:02.3]} 24... f6 {[%clk
0:00:17.7]} 25. Nh2 {[%clk 0:00:46.7]} 25... Rf8 {[%clk 0:00:13.9]} 26. Ng4
{[%clk 0:00:40.5]} 26... f5 {[%clk 0:00:13.9]} 27. Nf2 {[%clk 0:00:39.8]} 27...
Re3 {[%clk 0:00:10.7]} 28. Ng4 {[%clk 0:00:26.8]} 28... Re4 {[%clk 0:00:06.7]}
29. Nf2 {[%clk 0:00:26.7]} 29... Rd4 {[%clk 0:00:06.2]} 30. Rde1 {[%clk
0:00:25.7]} 30... Qf7 {[%clk 0:00:05.8]} 31. Qh4 {[%clk 0:00:20.4]} 31... Rxh4
{[%clk 0:00:05.4]} 0-1

[Event "*** SCC Grand Prix: Titled Tuesday Blitz"]
[Site "Chess.com"]
[Date "2020.06.09"]
[Round "9"]
[White "mishanick"]
[Black "1stSecond"]
[Result "1-0"]
[WhiteElo "2942"]
[BlackElo "2789"]
[TimeControl "180+1"]
[EndTime "10:46:16 PDT"]
[Termination "mishanick won by resignation"]

1. d4 {[%clk 0:02:53]} 1... Nf6 {[%clk 0:03:00]} 2. c4 {[%clk 0:02:53.6]} 2...
c5 {[%clk 0:03:00.1]} 3. d5 {[%clk 0:02:53.3]} 3... e6 {[%clk 0:03:00.7]} 4. Nc3
{[%clk 0:02:53.2]} 4... exd5 {[%clk 0:03:01.4]} 5. cxd5 {[%clk 0:02:54.1]} 5...
d6 {[%clk 0:03:01.9]} 6. e4 {[%clk 0:02:54.5]} 6... g6 {[%clk 0:03:02.4]} 7. h3
{[%clk 0:02:55.1]} 7... Bg7 {[%clk 0:03:01.8]} 8. Nf3 {[%clk 0:02:55.8]} 8...
O-O {[%clk 0:03:02.1]} 9. Bd3 {[%clk 0:02:56.4]} 9... a6 {[%clk 0:03:00.1]} 10.
a4 {[%clk 0:02:56.1]} 10... Nh5 {[%clk 0:03:00.6]} 11. O-O {[%clk 0:02:54.7]}
11... Re8 {[%clk 0:02:59.3]} 12. Re1 {[%clk 0:02:50.2]} 12... Nd7 {[%clk
0:02:58.2]} 13. g4 {[%clk 0:02:45.7]} 13... Nhf6 {[%clk 0:02:57.6]} 14. Bf4
{[%clk 0:02:46.1]} 14... h5 {[%clk 0:02:45.9]} 15. g5 {[%clk 0:02:43.6]} 15...
Nh7 {[%clk 0:02:46.1]} 16. h4 {[%clk 0:02:34.1]} 16... f6 {[%clk 0:02:33.9]} 17.
Qd2 {[%clk 0:02:23.5]} 17... Ne5 {[%clk 0:02:32.7]} 18. Nxe5 {[%clk 0:02:21.2]}
18... fxe5 {[%clk 0:02:27.2]} 19. Bg3 {[%clk 0:02:16.6]} 19... Bg4 {[%clk
0:02:08.3]} 20. Be2 {[%clk 0:02:15.6]} 20... Qd7 {[%clk 0:02:05.8]} 21. Qd1
{[%clk 0:02:14.1]} 21... Bxe2 {[%clk 0:02:03.9]} 22. Qxe2 {[%clk 0:02:15]} 22...
Rf8 {[%clk 0:02:04.2]} 23. Kg2 {[%clk 0:02:14.7]} 23... Rf7 {[%clk 0:02:03.1]}
24. f3 {[%clk 0:02:14.2]} 24... Rb8 {[%clk 0:01:56.9]} 25. a5 {[%clk 0:02:12.9]}
25... Qd8 {[%clk 0:01:56]} 26. Rf1 {[%clk 0:02:08.2]} 26... Qe7 {[%clk
0:01:47.3]} 27. Na4 {[%clk 0:02:06.1]} 27... Nf8 {[%clk 0:01:46.6]} 28. Nb6
{[%clk 0:02:03.7]} 28... Nd7 {[%clk 0:01:46.7]} 29. Nc4 {[%clk 0:02:04.2]} 29...
Rbf8 {[%clk 0:01:43]} 30. Rab1 {[%clk 0:02:01.8]} 30... Kh7 {[%clk 0:01:23.6]}
31. b4 {[%clk 0:02:00.2]} 31... cxb4 {[%clk 0:01:23.7]} 32. Rxb4 {[%clk
0:02:00.3]} 32... Nc5 {[%clk 0:01:24.3]} 33. Rb6 {[%clk 0:01:54.3]} 33... Rd8
{[%clk 0:01:23.8]} 34. Qe3 {[%clk 0:01:45.3]} 34... Qc7 {[%clk 0:01:21.3]} 35.
Rc1 {[%clk 0:01:44.3]} 35... Bf8 {[%clk 0:01:07.6]} 36. Bf2 {[%clk 0:01:12.2]}
36... Be7 {[%clk 0:00:59.7]} 37. Qd2 {[%clk 0:01:08.1]} 37... Qd7 {[%clk
0:00:40]} 38. Bxc5 {[%clk 0:01:00.3]} 38... Rxf3 {[%clk 0:00:39.9]} 39. Kxf3
{[%clk 0:00:57.8]} 39... Qg4+ {[%clk 0:00:25.9]} 40. Ke3 {[%clk 0:00:57.4]}
40... Rf8 {[%clk 0:00:14.5]} 41. Kd3 {[%clk 0:00:55.4]} 41... dxc5 {[%clk
0:00:14.4]} 42. Ne3 {[%clk 0:00:55.9]} 42... c4+ {[%clk 0:00:13.3]} 43. Rxc4
{[%clk 0:00:53]} 43... Qxh4 {[%clk 0:00:13.7]} 44. Rxb7 {[%clk 0:00:52.9]} 44...
Qxg5 {[%clk 0:00:13.1]} 45. Rcc7 {[%clk 0:00:53.4]} 45... Rf7 {[%clk 0:00:10.9]}
46. d6 {[%clk 0:00:53]} 46... Qf6 {[%clk 0:00:09.7]} 47. Rxe7 {[%clk 0:00:51.1]}
47... Qxd6+ {[%clk 0:00:10]} 48. Ke2 {[%clk 0:00:51.4]} 1-0

[Event "*** SCC Grand Prix: Titled Tuesday Blitz"]
[Site "Chess.com"]
[Date "2020.06.09"]
[Round "9"]
[White "gross-aleks"]
[Black "TheBigBadChessDad"]
[Result "1-0"]
[WhiteElo "2591"]
[BlackElo "2280"]
[TimeControl "180+1"]
[EndTime "10:46:19 PDT"]
[Termination "gross-aleks won on time"]

1. c4 {[%clk 0:02:20.5]} 1... e6 {[%clk 0:02:57.2]} 2. Nf3 {[%clk 0:02:19.6]}
2... d5 {[%clk 0:02:57]} 3. e3 {[%clk 0:02:20.5]} 3... Nf6 {[%clk 0:02:54.8]} 4.
b3 {[%clk 0:02:20.9]} 4... Nbd7 {[%clk 0:02:54.3]} 5. Bb2 {[%clk 0:02:21.3]}
5... b6 {[%clk 0:02:54.1]} 6. cxd5 {[%clk 0:02:20.5]} 6... exd5 {[%clk
0:02:53.8]} 7. Bb5 {[%clk 0:02:17.1]} 7... Bb7 {[%clk 0:02:53.3]} 8. Nd4 {[%clk
0:02:16.8]} 8... a6 {[%clk 0:02:44.3]} 9. Bc6 {[%clk 0:02:15.8]} 9... Qc8 {[%clk
0:02:36]} 10. Qc2 {[%clk 0:02:14.1]} 10... Bc5 {[%clk 0:02:14.2]} 11. a3 {[%clk
0:02:04.2]} 11... Bxc6 {[%clk 0:02:09.2]} 12. Nxc6 {[%clk 0:02:03.4]} 12... Qb7
{[%clk 0:02:06.8]} 13. Nd4 {[%clk 0:02:02.6]} 13... O-O {[%clk 0:01:50.5]} 14.
O-O {[%clk 0:02:01.8]} 14... Bxd4 {[%clk 0:01:44.5]} 15. Bxd4 {[%clk 0:02:01.1]}
15... c5 {[%clk 0:01:44.9]} 16. Bb2 {[%clk 0:02:02]} 16... Rac8 {[%clk
0:01:37.8]} 17. Qf5 {[%clk 0:01:59.6]} 17... Qc6 {[%clk 0:01:31.4]} 18. Nc3
{[%clk 0:01:58]} 18... Qe6 {[%clk 0:01:21]} 19. Qg5 {[%clk 0:01:18.4]} 19... h6
{[%clk 0:01:15.2]} 20. Qf4 {[%clk 0:01:17.4]} 20... Rfe8 {[%clk 0:01:11.6]} 21.
Ne2 {[%clk 0:01:12.6]} 21... Ne5 {[%clk 0:01:01.1]} 22. Bxe5 {[%clk 0:01:08.9]}
22... Qxe5 {[%clk 0:01:02]} 23. Qxe5 {[%clk 0:01:09.2]} 23... Rxe5 {[%clk
0:01:02.9]} 24. Rfc1 {[%clk 0:01:04.4]} 24... d4 {[%clk 0:00:59.3]} 25. Nxd4
{[%clk 0:01:03.4]} 25... Ne4 {[%clk 0:00:40]} 26. d3 {[%clk 0:00:57.7]} 26...
Nd6 {[%clk 0:00:24.9]} 27. Nf3 {[%clk 0:00:54.5]} 27... Rd5 {[%clk 0:00:24.8]}
28. Rd1 {[%clk 0:00:54.1]} 28... Rd8 {[%clk 0:00:19.6]} 29. Rac1 {[%clk
0:00:39.3]} 29... Nb5 {[%clk 0:00:13.5]} 30. a4 {[%clk 0:00:38.9]} 30... Na7
{[%clk 0:00:10.4]} 31. Ne1 {[%clk 0:00:38.2]} 31... Nc6 {[%clk 0:00:09.4]} 32.
Kf1 {[%clk 0:00:38.6]} 32... Nb4 {[%clk 0:00:09.2]} 33. Ke2 {[%clk 0:00:38.5]}
33... Kf8 {[%clk 0:00:09.3]} 34. Rc4 {[%clk 0:00:36.4]} 34... b5 {[%clk
0:00:07.7]} 35. Re4 {[%clk 0:00:33.2]} 35... bxa4 {[%clk 0:00:06.9]} 36. bxa4
{[%clk 0:00:32.6]} 36... Rb8 {[%clk 0:00:07]} 37. Rc4 {[%clk 0:00:32.4]} 37...
a5 {[%clk 0:00:03.7]} 38. Rd2 {[%clk 0:00:32.2]} 38... Ke7 {[%clk 0:00:01.7]}
39. e4 {[%clk 0:00:32.2]} 39... Rh5 {[%clk 0:00:01.2]} 40. h3 {[%clk 0:00:32]}
1-0